Cogmind - Beta 15 @@@ ROGUE MODE // 2025.06.08 @ 23:27:53 Player: CL-1C0 Result: Self-destructed Performance ------------- Evolutions (1) 500 Regions Visited (4) 800 Robots Destroyed (1) 5 Value Destroyed (2) 2 Prototype IDs (0) 0 Alien Tech Used (0) 0 Bonus (0) 0 TOTAL SCORE: 1307 Bonus ------- None Cogmind --------- Core Integrity 128/400 Matter 285/300 Energy 99/100 System Corruption 0% Temperature Cool (0) Movement Core (50) Location -9/Storage Parts ------- > --- POWER (1) -------- (None) > --- PROPULSION (2) --- Improved Treads Improved Treads > --- UTILITY (4) ------ (None) > --- WEAPON (2) ------- (None) > --- INVENTORY (5) ---- (None) Peak State ------------ > --- POWER ------------ (None) > --- PROPULSION ------- Improved Treads Improved Treads > --- UTILITY ---------- (None) > --- WEAPON ----------- Hammer > --- INVENTORY -------- (None) [Rating: 5] Favorites ----------- Power None Propulsion Improved Treads Treads Improved Treads Utility None Weapon Hammer Impact Weapon Hammer Build | -11 -10 -10 -9 -9 ------- Run | Yrd Mat Min Mat Sto Slots Evolved 2 | . . . 2 . Power . | . . . . . Propulsion . | . . . . . Utility 2 | . . . 2 . Weapon . | . . . . . Parts Attached 3 | . 1 . . 2 Power . | . . . . . Engine . | . . . . . Core . | . . . . . Reactor . | . . . . . Propulsion 2 | . . . . 2 Treads 2 | . . . . 2 Leg . | . . . . . Wheel . | . . . . . Hover . | . . . . . Flight . | . . . . . Utility . | . . . . . Device . | . . . . . Storage . | . . . . . Processor . | . . . . . Hackware . | . . . . . Protection . | . . . . . Artifact . | . . . . . Weapon 1 | . 1 . . . Energy Gun . | . . . . . Energy Cannon . | . . . . . Ballistic Gun . | . . . . . Ballistic Cannon . | . . . . . Launcher . | . . . . . Special Weapon . | . . . . . Impact Weapon 1 | . 1 . . . Slashing Weapon . | . . . . . Piercing Weapon . | . . . . . Special Melee Weapon . | . . . . . Unidentified Prototypes . | . . . . . Parts Lost 1 | . . . . 1 Power . | . . . . . Propulsion . | . . . . . Utility . | . . . . . Weapon 1 | . . . . 1 Highest Loss Streak 1 | . . . . 1 To Critical Strikes . | . . . . . Average Backups . | 4 . . . . Power . | 1 . . . . Propulsion . | 2 . . . . Utility . | . . . . . Weapon . | 1 . . . . Tool/Special . | . . . . . Unused Backups . | . . . . . Power . | . . . . . Propulsion . | . . . . . Utility . | . . . . . Weapon . | . . . . . Tool/Special . | . . . . . Average Slot Usage (%) 12 | . 8 14 11 19 Treads 1 | . . . . 11 Impact Weapon 11 | . 8 14 11 8 Peak Build Rating 5 | . 1 1 1 5 Average Rating 1 | . . 1 1 3 On Entrance 1 | 6 . 1 1 1 Naked Turns 17 | . 17 . . . Heaviest Build 2 | . 2 2 2 2 Greatest Support 3 | 3 3 3 3 3 Greatest Overweight (x) . | . . . . . Average Overweight (x) . | . . . . . Largest Inventory Capacity 5 | 5 5 5 5 5 Average Capacity 5 | 5 5 5 5 5 Most Carried 4 | 4 . . . . Average Carried . | 2 . . . . Final Capacity 5 | 5 5 5 5 5 Final Carried . | . . . . . Class Distribution -------------------- 100% | Mutant Dominant Class ---------------- Mutant | -10/Materials Mutant | -10/Mines Mutant | -9/Materials Mutant | -9/Storage Resources | -11 -10 -10 -9 -9 ----------- Run | Yrd Mat Min Mat Sto Matter Collected 210 | 200 10 . . . Remotely . | . . . . . Salvage Created 58 | . 58 . . . Parts 1 | . 1 . . . Haulers Intercepted 1 | . 1 . . . Recyclers Shooed . | . . . . . Parts Field Recycled . | . . . . . Retrieved Matter . | . . . . . Parts Self-Destructed . | . . . . . Prevented . | . . . . . Kills | -11 -10 -10 -9 -9 ------- Run | Yrd Mat Min Mat Sto Combat Hostiles Destroyed . | . . . . . Classes Destroyed 1 | . 1 . . . Hauler 1 | . 1 . . . Best Kill Streak 1 | . 1 . . . Combat Bots Only . | . . . . . Max Kills in Single Turn 1 | . 1 . . . Gunslinging . | . . . . . Exploded . | . . . . . Melee . | . . . . . Uniques/NPCs Destroyed . | . . . . . Combat | -11 -10 -10 -9 -9 -------- Run | Yrd Mat Min Mat Sto Hostile Shots Fired 50 | . . 6 42 2 Missed 23 | . . 4 19 . Hits 27 | . . 2 23 2 Projectile 27 | . . 2 23 2 Damage Taken 387 | . . 16 350 21 Core 282 | . . 10 262 10 Absorbed by Shields . | . . . . . Core Remaining (%) 98 | 100 . 96 . . Volleys Fired . | . . . . . Largest . | . . . . . Hottest . | . . . . . Shots Fired . | . . . . . Gun . | . . . . . Cannon . | . . . . . Launcher . | . . . . . Special . | . . . . . Kinetic . | . . . . . Thermal . | . . . . . Explosive . | . . . . . Electromagnetic . | . . . . . Robot Hit Streak . | . . . . . Robot Miss Streak . | . . . . . Penetration Max . | . . . . . Secondary Targets . | . . . . . Shots Hit Robots 15 | . 2 2 11 . Core Hits 1 | . . . 1 . Critical Kills . | . . . . . Critical Parts Destroyed 3 | . 1 1 1 . Critical Strikes 5 | . 1 1 3 . Smash 5 | . 1 1 3 . Melee Attacks 27 | . 10 5 12 . Impact 27 | . 10 5 12 . Slashing . | . . . . . Piercing . | . . . . . Sneak Attacks 2 | . 1 1 . . Combat Hostiles . | . . . . . Follow-up Attacks . | . . . . . Damage Inflicted 330 | . 60 80 190 . Guns . | . . . . . Cannons . | . . . . . Explosions . | . . . . . Melee 330 | . 60 80 190 . Ramming . | . . . . . Kinetic . | . . . . . Thermal . | . . . . . Explosive . | . . . . . Electromagnetic . | . . . . . Impact 330 | . 60 80 190 . Slashing . | . . . . . Piercing . | . . . . . Highest Corruption . | . . . . . Average Corruption . | . . . . . Corruption Purged . | . . . . . Corruption Blocked . | . . . . . Overload Shots . | . . . . . Overflow Damage 86 | . 18 50 18 . Projectiles . | . . . . . Explosions . | . . . . . Melee 86 | . 18 50 18 . Knockbacks . | . . . . . Impact . | . . . . . Kinetic . | . . . . . Secondary . | . . . . . Self-Inflicted Damage . | . . . . . Shots . | . . . . . Rammed . | . . . . . Targets Rammed . | . . . . . Kicked . | . . . . . Crushed . | . . . . . Highest Temperature . | . . . . . Average Temperature . | . . . . . Received Heat Transfer 102 | . . . 90 12 Siege Activations . | . . . . . Martial Activations . | . . . . . Shielding Activations . | . . . . . Robots Disrupted . | . . . . . Combat Hostiles . | . . . . . Robots Corrupted . | . . . . . Combat Hostiles . | . . . . . Parts Fried . | . . . . . Impact Corruptions 4 | . 1 2 1 . Robots Melted . | . . . . . Combat Hostiles . | . . . . . Parts Melted . | . . . . . Heat Transferred . | . . . . . Parts Sabotaged . | . . . . . Parts Stolen . | . . . . . Parts Stripped . | . . . . . Power Chain Reactions . | . . . . . Alert | -11 -10 -10 -9 -9 ------- Run | Yrd Mat Min Mat Sto Maximum Alert Level . | . . . . . Low Security (%) 100 | 100 100 100 100 100 Level 1 . | . . . . . Level 2 . | . . . . . Level 3 . | . . . . . Level 4 . | . . . . . Level 5 . | . . . . . High Security . | . . . . . Max Security . | . . . . . Peak Influence 45 | . 9 45 1 . Initial 1 | . . . 1 . Average 7 | . 2 12 . . Influence Increases 62 | . 16 46 . . Destroy 0b10 Robot/NC 5 | . 5 . . . Destroy Leader 2 | . 2 . . . Successful Hack 5 | . 5 . . . Destroy Structure 5 | . 4 1 . . Lose Combat Pursuer 45 | . . 45 . . Influence Decreases 62 | . 16 41 5 . Entered New Map 4 | . . . 4 . Time Decay 58 | . 16 41 1 . Squads Dispatched 2 | . 1 . 1 . Investigation . | . . . . . Extermination . | . . . . . Reinforcement 2 | . 1 . 1 . Assault . | . . . . . Garrison . | . . . . . Intercept . | . . . . . Searches Triggered . | . . . . . Construction Impeded . | . . . . . Haulers Reinforced . | . . . . . Active Scanning Responses . | . . . . . Cargo Convoy Interrupts . | . . . . . Stealth | -11 -10 -10 -9 -9 --------- Run | Yrd Mat Min Mat Sto Distress Signals 1 | . . . 1 . Communications Jammed . | . . . . . Distress Signals . | . . . . . Times Spotted 10 | . 2 3 3 2 Peak Tracking Total 3 | . 2 3 3 2 Tactical Retreats 1 | . . 1 . . Traps | -11 -10 -10 -9 -9 ------- Run | Yrd Mat Min Mat Sto Traps Triggered . | . . . . . Indirectly . | . . . . . Trap Hack Attempts . | . . . . . Triggered . | . . . . . Disarmed . | . . . . . Reprogrammed . | . . . . . Reused . | . . . . . Traps Extracted . | . . . . . Installed . | . . . . . Triggered . | . . . . . Machines | -11 -10 -10 -9 -9 ---------- Run | Yrd Mat Min Mat Sto Machines Disabled . | . . . . . Max in Single Turn . | . . . . . Machines Repaired . | . . . . . Machines Dismantled . | . . . . . Machines Sabotaged . | . . . . . Overloaded Fab Kills . | . . . . . Hacking | -11 -10 -10 -9 -9 --------- Run | Yrd Mat Min Mat Sto Machines Accessed 2 | . 2 . . . Terminals 2 | . 2 . . . Fabricators . | . . . . . Repair Stations . | . . . . . Recycling Units . | . . . . . Scanalyzers . | . . . . . Garrison Access . | . . . . . Total Hacks 6 | . 6 . . . Successful 2 | . 2 . . . Failed 4 | . 4 . . . Catastrophic . | . . . . . Database Lockouts . | . . . . . Manual 1 | . 1 . . . Terminals 6 | . 6 . . . Fabricators . | . . . . . Repair Stations . | . . . . . Recycling Units . | . . . . . Scanalyzers . | . . . . . Garrison Access . | . . . . . Terminal Hacks 2 | . 2 . . . Locate Traps 1 | . 1 . . . Zone Layout 1 | . 1 . . . Fabricator Hacks . | . . . . . Repair Station Hacks . | . . . . . Recycling Unit Hacks . | . . . . . Scanalyzer . | . . . . . Garrison Access Hacks . | . . . . . Unauthorized Hacks . | . . . . . Terminals . | . . . . . Fabricators . | . . . . . Repair Stations . | . . . . . Recycling Units . | . . . . . Scanalyzers . | . . . . . Garrison Access . | . . . . . Data Cores Recovered . | . . . . . Used . | . . . . . Hacking Detections 1 | . 1 . . . Full Trace Events . | . . . . . Feedback Events . | . . . . . Feedback Blocked . | . . . . . Robot Schematics Acquired . | . . . . . Robots Built . | . . . . . Authchips . | . . . . . Time . | . . . . . Total Robot Build Rating . | . . . . . Part Schematics Acquired . | . . . . . Parts Built . | . . . . . Authchips . | . . . . . Time . | . . . . . Total Part Build Rating . | . . . . . Parts Repaired . | . . . . . Time . | . . . . . Parts Recycled . | . . . . . Recycled Matter . | . . . . . Retrieved Matter . | . . . . . Retrieved Components . | . . . . . Parts Scanalyzed . | . . . . . Part Schematics Acquired . | . . . . . Parts Damaged . | . . . . . Bothacking | -11 -10 -10 -9 -9 ------------ Run | Yrd Mat Min Mat Sto Used RIF Installer . | . . . . . Robots Hacked . | . . . . . Non-combat . | . . . . . Combat . | . . . . . Robot Hacks Applied . | . . . . . Relay Couplers Released . | . . . . . Fabnet Peak Effective % . | . . . . . Robots Rewired . | . . . . . Allies Hacked . | . . . . . Hacks Repelled . | . . . . . Allies | -11 -10 -10 -9 -9 -------- Run | Yrd Mat Min Mat Sto Total Allies 3 | . . 1 . 2 Largest Group 2 | . . 1 . 2 Highest-Rated Group 62 | . . 31 . 62 Highest-Rated Ally 31 | . . 31 . 31 Total Orders . | . . . . . Ally Attacks 7 | . . 3 . 4 Total Damage 64 | . . . . 64 Kills . | . . . . . Allies Corrupted . | . . . . . Allies Melted . | . . . . . Intel | -11 -10 -10 -9 -9 ------- Run | Yrd Mat Min Mat Sto Active Infowar (turns) . | . . . . . Robot Analysis Total . | . . . . . Derelict Logs Recovered 2 | . . 2 . . Drone Launches . | . . . . . Drone Recoveries . | . . . . . Exploration | -11 -10 -10 -9 -9 ------------- Run | Yrd Mat Min Mat Sto Turns Passed 281 | 3 63 143 45 27 Spaces Moved 398 | 1 68 259 23 47 Core 398 | 1 68 259 23 47 Treads . | . . . . . Legs . | . . . . . Wheels . | . . . . . Hover . | . . . . . Flight . | . . . . . Fastest Speed 50 | 50 50 50 50 50 Average Speed 50 | 50 50 50 50 50 Slowest Speed 50 | 50 50 50 50 50 Overloaded Moves . | . . . . . Propulsion Burnouts . | . . . . . Robots Hopped . | . . . . . Potential Cave-ins . | . . . . . Cave-ins Triggered . | . . . . . Exploration Rate (%) 22 | 2 23 72 5 9 Regions Visited 4 Branch Regions 2 Pre-discovered Areas 2 | . . 2 . . Known Exits Taken . | . . . . . Unknown Exits Taken 4 | 1 1 1 1 . Scrap Searched 1 | . . 1 . . Spaces Dug 5 | . 4 1 . . Terrain Destroyed 5 | . 4 1 . . Melee 5 | . 4 1 . . Projectile . | . . . . . AOE . | . . . . . Terrain Rammed . | . . . . . Walls Destroyed . | . . . . . Machines Disabled . | . . . . . Actions | -11 -10 -10 -9 -9 --------- Run | Yrd Mat Min Mat Sto Total 429 | 5 78 263 34 49 Wait . | . . . . . Move 394 | . 67 258 22 47 Hop . | . . . . . Pick Up . | . . . . . Fast Attach 3 | . 1 . . 2 Attach . | . . . . . Detach . | . . . . . Swap . | . . . . . Drop 5 | 5 . . . . Fire . | . . . . . Melee 27 | . 10 5 12 . Ram . | . . . . . Kick . | . . . . . Crush . | . . . . . Escape Stasis . | . . . . . Rewire . | . . . . . Trap . | . . . . . Miscellaneous . | . . . . . Route ------- -11/Scrapyard -10/Materials -10/Mines -9/Materials -9/Storage History --------- Turn | Location | Event 1 | -11/Scrapyard | Released all parts (6) 4 | -11/Scrapyard | Discovered new exit (range 0) 4 | -11/Scrapyard | Entered Materials 51 | -10/Materials | Discovered new exit (range 15) 67 | -10/Materials | Entered Mines 71 | -10/Mines | Learned Materials terminal intel 74 | -10/Mines | Learned Materials stockpile data 88 | -10/Mines | Escorted by a lone wolf Derelict 106 | -10/Mines | Learned location of Storage (-9) 206 | -10/Mines | Discovered new exit (range 7) 210 | -10/Mines | Entered Materials 210 | -9/Materials | Evolved 2 slots: Utility x2 212 | -9/Materials | Loaded intel: 12 terminal locations 215 | -9/Materials | Discovered new exit (range 14) 250 | -9/Materials | Core integrity fell below 50% 255 | -9/Materials | Entered Storage 258 | -9/Storage | Met a pair of Derelict thieves 282 | -9/Storage | Self-destructed Last Messages --------------- GOAL=ESCAPE Loading Materials stockpile data (x8)... 00211_ O-16 Technician: "IFF HANDSHAKE FAILED. SECURING TERMINAL." Loading Materials terminal intel (x12)... 00214_ O-16 Technician sends out distress signal. 00215_ EXIT=FOUND 00221_ Y-45 Defender suffers critical hit (Smash). 00223_ ALERT: Hostiles spotted, dispatching reinforcements to Terminal M009. 00237_ Y-45 Defender suffers critical hit (Smash). 00237_ Destroyed Lgt. Treads. 00237_ Y-45 Defender system corrupted by crushing effect. 00240_ Y-45 Defender suffers critical hit (Smash). LOCATION=UNKNOWN GOAL=ESCAPE 00258_ A pair of derelicts emerge from hiding: "Whew, we thought you were one of them, but you're obviously not! Quick, help us haul this stuff before they figure out we jammed the door open." 00260_ Acquired Imp. Treads. 00273_ Hammer destroyed. Map ----- +----------------------------------------------------+ | | | | | | | | | | | | | | | | | | | | | | | | | | | ??????????????????????????????????????????????? | | ??????????????????????????????????????????????? | | ??????????????????????????????????????????????? | | ??????????????????????????????????????????????? | | ?????????###############################??????? | | ????????# #??????? | | ????????# #??????? | | ????????# #??????? | | ???????????????########+#############+##??????? | | ??????????????????# #????# ##??????? | | ??????????????????# #????# T#??????? | | ??????????????????# #????##" "###?????? | | ??????????????????# """"@ #????#! #?????? | | ??????????????????# """" #????# ==#?????? | | ??????????????????# """" #????# = #?????? | | ??????????????????# """" #????#= =#?????? | | ??????????????????# #????########?????? | | ??????????????????###########?????????????????? | | ??????????????????????????????????????????????? | | ??????????????????????????????????????????????? | | ??????????????????????????????????????????????? | | ??????????????????????????????????????????????? | | ??????????????????????????????????????????????? | | ??????????????????????????????????????????????? | | ??????????????????????????????????????????????? | | ??????????????????????????????????????????????? | | ??????????????????????????????????????????????? | | ??????????????????????????????????????????????? | | ??????????????????????????????????????????????? | | ??????????????????????????????????????????????? | | ??????????????????????????????????????????????? | | ??????????????????????????????????????????????? | | ??????????????????????????????????????????????? | | ??????????????????????????????????????????????? | | ??????????????????????????????????????????????? | | ??????????????????????????????????????????????? | | ??????????????????????????????????????????????? | +----------------------------------------------------+ Best States ------------- Heat Dissipation 28 Energy Generation 5 Energy Capacity 100 Matter Stores 300 Matter Capacity 300 Sight Range 16 Terrain Scan Density 10 Evasion (%) 50 Item Schematics ----------------- None Robot Schematics ------------------ None Fabricated ------------ Nothing Repaired ---------- Nothing Alien Tech Used ----------------- None Achievements -------------- None Challenges ------------ None Game ------ Seed NeutrinoGravjetTearclaws Manual? 0 Play Time 00:03:45 Cumulative 528.2 hours Start 2025.06.08 @ 23:24:31 End 2025.06.08 @ 23:27:53 Sessions 1 Manual Loads 0 Difficulty Rogue Special Mode None Game No. 598 Rogue 598 Adventurer 0 Explorer 0 Win Type - Total 16 Types 10/0/5/1/0/0/0/0/0/0 Lore% 83 Gallery% 82 Achievement% 82 Wizard Run 0 Options --------- Layout 0 ASCII 0 Keyboard 0 Movement Numpad Keybinds 0 Fullscreen 1 Font 18/SmallcapsGlow Map View 76x50 Zoom Use 0% Tactical HUD 1 Map Filters NONE Filters NONE Steam 1 RUN: 3d878d90-6661-4e24-84d0-243c1afdc6cd